bitfinex-derivatives/quotes_BTCF0:USTF0_20251125
["timestamp","ask_amount","ask_price","bid_price","bid_amount"]
[1764039728964,0.1368765,87890.0,87878.0,0.05729133]
[1764039728965,0.0113811,87896.0,87892.0,0.04371]
[1764039729169,0.0113812,87895.0,87892.0,0.04590803]
[1764039730074,0.3833,87893.0,87892.0,0.04590803]
[1764039730275,0.04376,87893.0,87892.0,0.04590803]
[1764039731670,0.04476,87893.0,87892.0,0.04590803]
[1764039731870,0.04476,87893.0,87892.0,0.08681297]
[1764039732676,0.40556,87893.0,87892.0,0.04590803]
[1764039734870,0.83556,87893.0,87892.0,0.00219803]
[1764039735065,0.04557,87885.0,87884.0,0.02274062]
[1764039735376,0.0569524,87885.0,87884.0,0.00236865]
[1764039737574,0.0569524,87885.0,87884.0,0.00017062]
[1764039738264,0.0579524,87885.0,87884.0,0.00017062]
[1764039739879,0.8087524,87885.0,87884.0,0.00017062]
[1764039740174,0.04557,87872.0,87868.0,0.04099278]
[1764039740477,0.04557,87869.0,87868.0,0.08643278]
[1764039740673,0.0569545,87869.0,87868.0,0.06576081]
[1764039740876,0.0569545,87869.0,87868.0,0.00228587]
[1764039741275,0.0569545,87869.0,87868.0,0.02485587]
[1764039741472,0.04557,87869.0,87868.0,0.04772587]
[1764039744880,0.04557,87869.0,87868.0,0.02485587]
[1764039745067,0.04557,87869.0,87868.0,0.04772587]
[1764039746583,0.49557,87869.0,87868.0,0.00228587]
[1764039746780,0.85637,87869.0,87868.0,8.784e-05]
[1764039746981,0.0569555,87861.0,87860.0,0.00017062]
[1764039747281,0.4769555,87861.0,87860.0,0.00017062]
[1764039747678,0.1369555,87861.0,87860.0,0.00017062]
[1764039748078,0.79785869,87861.0,87860.0,0.00117062]
[1764039748279,0.50785869,87861.0,87860.0,0.02474062]
[1764039748487,0.50785869,87861.0,87860.0,0.00217062]
[1764039748877,0.41785869,87861.0,87860.0,0.04761062]
[1764039749183,0.41785869,87861.0,87860.0,0.04980865]
[1764039749494,0.40647319,87861.0,87860.0,0.04980865]
[1764039750580,0.40647319,87861.0,87860.0,0.02693865]
[1764039750780,0.40647319,87861.0,87860.0,0.04980865]
[1764039750982,0.58611319,87861.0,87860.0,0.04980865]
[1764039751181,0.40647319,87861.0,87860.0,0.04980865]
[1764039751386,0.17974319,87861.0,87860.0,0.06119435]
[1764039751786,0.00010319,87861.0,87860.0,0.06119435]
[1764039752088,0.00010319,87861.0,87860.0,0.10209929]
[1764039752387,0.00010319,87861.0,87860.0,0.06119435]
[1764039753583,0.00010319,87861.0,87860.0,0.04980865]
[1764039754184,0.00010319,87861.0,87860.0,0.41060865]
[1764039754492,0.04567319,87861.0,87860.0,0.04980865]
[1764039755191,0.04567319,87861.0,87860.0,0.08044942]
[1764039759094,0.04567319,87861.0,87860.0,0.04980865]
[1764039759291,0.04567319,87861.0,87860.0,0.08044942]
[1764039760294,0.04567319,87861.0,87860.0,0.04980865]
[1764039762199,0.04567319,87861.0,87860.0,0.08044942]
[1764039762402,0.04567319,87861.0,87860.0,0.04980865]
[1764039762693,0.02251319,87861.0,87860.0,0.45146543]
[1764039762993,0.00010319,87861.0,87860.0,0.45146543]
[1764039763193,0.00010319,87861.0,87860.0,0.04980865]
[1764039763399,0.00010319,87861.0,87860.0,0.09069799]
[1764039763590,0.02307319,87861.0,87860.0,0.09069799]
[1764039763790,0.04502319,87861.0,87860.0,0.09069799]
[1764039763994,0.02307319,87861.0,87860.0,0.04980865]
[1764039765492,0.00010319,87861.0,87860.0,0.04980865]
[1764039765993,0.02307319,87861.0,87860.0,0.04980865]
[1764039766703,0.04502319,87861.0,87860.0,0.04980865]
[1764039767596,0.02307319,87861.0,87860.0,0.04980865]
[1764039767788,0.04502319,87861.0,87860.0,0.04980865]
[1764039770097,0.04502319,87861.0,87860.0,0.00436865]
[1764039770502,0.04502319,87861.0,87860.0,0.03508526]
[1764039771105,0.04502319,87861.0,87860.0,0.02672865]
[1764039772094,0.22462319,87861.0,87860.0,0.00436865]
[1764039773803,0.22462319,87861.0,87860.0,0.02472865]
[1764039776807,0.22462319,87861.0,87860.0,0.08745022]
[1764039777606,0.22462319,87861.0,87860.0,0.04329022]
[1764039777906,0.63462319,87861.0,87860.0,0.04109219]
[1764039778207,0.63462319,87861.0,87860.0,0.02383865]
[1764039778902,0.63462319,87861.0,87860.0,0.04611865]
[1764039779498,0.22462319,87861.0,87860.0,0.04611865]
[1764039779906,0.22462319,87861.0,87860.0,0.08708567]
[1764039781302,0.22462319,87861.0,87860.0,0.04611865]
[1764039781909,0.22462319,87861.0,87860.0,0.08708636]
[1764039782099,0.04502319,87861.0,87860.0,0.09847206]
[1764039782305,0.04502319,87861.0,87860.0,0.04611865]
[1764039783199,0.04502319,87861.0,87860.0,0.02383865]
[1764039783403,0.49502319,87861.0,87860.0,0.00017062]
[1764039784504,0.24502319,87861.0,87860.0,0.00017062]
[1764039784906,0.47502319,87861.0,87860.0,0.00017062]
[1764039785708,0.04538,87857.0,87856.0,0.04097709]
[1764039785907,0.48538,87857.0,87856.0,0.04097709]
[1764039786102,0.0567662,87856.0,87855.0,0.04097709]
[1764039786308,0.0567662,87856.0,87855.0,0.08472709]
[1764039786710,0.0567662,87856.0,87855.0,0.04375]
[1764039787112,0.0567662,87856.0,87855.0,0.0847242]
[1764039787815,0.04538,87856.0,87855.0,0.04594803]
[1764039788019,0.04548319,87861.0,87860.0,0.04375]
[1764039788318,0.02260319,87861.0,87860.0,0.04594803]
[1764039789516,0.04548319,87861.0,87860.0,0.04594803]
[1764039790113,0.00010319,87861.0,87860.0,0.04594803]
[1764039790420,0.00010319,87861.0,87860.0,0.40674803]
[1764039790721,0.00010319,87861.0,87860.0,0.46814444]
[1764039791107,0.00010319,87861.0,87860.0,0.40674803]
[1764039791312,0.00010319,87861.0,87860.0,0.46814444]
[1764039791608,0.011384,87873.0,87872.0,0.04443]
[1764039791814,0.0113837,87875.0,87874.0,0.04481]
[1764039792115,0.0560837,87875.0,87874.0,0.08796202]
[1764039792914,0.0570837,87875.0,87874.0,0.08796202]
[1764039793118,0.0570837,87875.0,87874.0,0.04700803]
[1764039793313,0.0329637,87875.0,87874.0,0.04700803]
[1764039793514,0.0339637,87875.0,87874.0,0.04700803]
[1764039793920,0.0570837,87875.0,87874.0,0.04700803]
[1764039794322,0.0580837,87875.0,87874.0,0.04700803]
[1764039794543,0.002,87875.0,87874.0,0.04700803]
[1764039795328,0.0133837,87875.0,87874.0,0.04700803]
[1764039795518,0.002,87875.0,87874.0,0.04700803]
[1764039796013,0.001,87875.0,87874.0,0.04700803]
[1764039796219,0.002,87875.0,87874.0,0.04700803]
[1764039796426,0.0457,87875.0,87874.0,0.04700803]
[1764039797518,0.4065,87875.0,87874.0,0.04700803]
[1764039799125,0.3618,87875.0,87874.0,0.04700803]
[1764039799928,0.001,87875.0,87874.0,0.04700803]
[1764039800127,0.001,87875.0,87874.0,0.08791187]
[1764039800523,0.00017062,87877.0,87876.0,0.04467]
[1764039800722,0.00017062,87877.0,87876.0,0.04686803]
[1764039801724,0.00117062,87877.0,87876.0,0.04686803]
[1764039802224,0.00117062,87877.0,87876.0,0.08773937]
[1764039802425,0.3608,87892.0,87891.0,0.0560517]
[1764039802630,0.0113798,87906.0,87901.0,0.04467]
[1764039802830,0.0113798,87906.0,87905.0,0.04467]
[1764039803132,0.0113798,87906.0,87905.0,0.04686803]
[1764039803323,0.0341598,87906.0,87905.0,0.04686803]
[1764039803518,0.0113793,87909.0,87906.0,0.01352]
[1764039803716,0.0113793,87909.0,87908.0,0.04686803]
[1764039803917,0.00017072,87914.0,87913.0,0.05819]
[1764039804125,0.00017072,87914.0,87913.0,0.06038803]
[1764039808935,0.01154942,87914.0,87913.0,0.06038803]
[1764039809231,0.49576942,87914.0,87913.0,0.00219803]
[1764039809830,0.49576942,87914.0,87899.0,0.40547]
[1764039809831,0.0556005,87900.0,87899.0,0.40547]
[1764039810028,0.0556005,87900.0,87899.0,0.36299803]
[1764039810229,0.0556005,87900.0,87899.0,0.00219803]
[1764039810634,0.4956005,87900.0,87899.0,0.00219803]
[1764039810826,0.4956005,87900.0,87897.0,0.00017072]
[1764039810827,0.04422,87898.0,87897.0,0.00017072]
[1764039811024,0.89795498,87898.0,87897.0,0.00017072]
[1764039811228,0.80502,87898.0,87897.0,0.00017072]
[1764039811429,0.0556028,87882.0,87881.0,0.3608]
[1764039811636,0.0556028,87882.0,87881.0,0.38488803]
[1764039811840,0.0556028,87882.0,87881.0,0.40766803]
[1764039812529,0.0556028,87882.0,87881.0,0.04686803]
[1764039813132,0.0556028,87882.0,87881.0,0.04786803]
[1764039814134,0.04422,87882.0,87881.0,0.04786803]
[1764039814439,0.02278,87882.0,87881.0,0.04786803]
[1764039814837,0.04422,87882.0,87881.0,0.04786803]
[1764039816439,0.04422,87882.0,87881.0,0.02508803]
[1764039816632,0.42422,87882.0,87881.0,0.00319803]
[1764039818744,0.42422,87882.0,87881.0,0.001]
[1764039821043,0.42422,87882.0,87881.0,0.02289]
[1764039821232,0.42422,87882.0,87881.0,0.04800803]
[1764039821634,0.04422,87882.0,87881.0,0.04800803]
[1764039824350,0.057312,87888.0,87885.0,0.01375]
[1764039824643,0.057312,87888.0,87887.0,0.04842803]
[1764039824845,0.236872,87888.0,87887.0,0.04842803]
[1764039825248,0.236912,87888.0,87887.0,0.04842803]
[1764039826646,0.057312,87888.0,87887.0,0.04842803]
[1764039826846,0.236912,87888.0,87887.0,0.04842803]
[1764039827435,0.057313,87881.0,87880.0,0.04623]
[1764039827650,0.04593,87877.0,87876.0,0.03054354]
[1764039827848,0.04593,87874.0,87873.0,0.38428072]
[1764039828149,0.04593,87874.0,87873.0,0.38647875]
[1764039828448,0.04593,87874.0,87873.0,0.40939875]
[1764039828649,0.04493,87874.0,87873.0,0.04859875]
[1764039828839,0.04393,87874.0,87873.0,0.04859875]
[1764039829544,0.04393,87874.0,87873.0,0.04959875]
[1764039830150,0.04393,87874.0,87873.0,0.05059875]
[1764039834453,0.02065,87874.0,87873.0,0.05059875]
[1764039834656,0.0113836,87876.0,87875.0,0.04623]
[1764039834954,0.0113836,87876.0,87875.0,0.04842803]
[1764039835152,0.3608,87881.0,87877.0,0.04623]
[1764039835362,0.00017072,87890.0,87877.0,0.04623]
[1764039835363,0.011382,87889.0,87888.0,0.04623]
[1764039835656,0.057312,87889.0,87888.0,0.04842803]
[1764039835851,0.057312,87889.0,87888.0,0.00219803]
[1764039836851,0.057312,87889.0,87888.0,0.04658803]
[1764039837155,0.04593,87889.0,87888.0,0.04658803]
[1764039838156,0.46593,87889.0,87888.0,0.04658803]
[1764039839258,0.04593,87889.0,87888.0,0.04658803]
[1764039840151,0.47593,87889.0,87888.0,0.00219803]
[1764039841361,0.04565,87886.0,87885.0,0.04086907]
[1764039841563,0.60521,87886.0,87885.0,0.04086907]
[1764039841752,0.60521,87886.0,87885.0,0.0662271]
[1764039841953,0.22521,87886.0,87885.0,0.1005171]
[1764039842159,0.2026,87886.0,87885.0,0.05964803]
[1764039842360,0.22521,87886.0,87885.0,0.05964803]
[1764039842562,0.22521,87886.0,87885.0,0.04643803]
[1764039843157,0.59521,87886.0,87885.0,0.08738666]
[1764039843554,0.22521,87886.0,87885.0,0.08738666]
[1764039845365,0.22521,87886.0,87885.0,0.05964803]
[1764039845659,0.22521,87886.0,87885.0,0.04643803]
[1764039846767,0.22521,87886.0,87885.0,0.08738398]
[1764039847878,0.22521,87886.0,87885.0,0.02535803]
[1764039848078,0.22521,87886.0,87885.0,0.00219803]
[1764039848278,0.0570332,87879.0,87878.0,0.04094595]
[1764039848475,0.05842,87878.0,87877.0,0.04094595]
[1764039848674,0.0570335,87877.0,87876.0,0.04094595]
[1764039848875,0.0570335,87877.0,87876.0,0.02316]
[1764039849075,0.0570335,87877.0,87876.0,0.02535803]
[1764039849381,0.0570335,87877.0,87876.0,0.04643803]
[1764039849571,0.0560335,87877.0,87876.0,0.04643803]
[1764039849773,0.0560335,87877.0,87876.0,0.04743803]
[1764039850079,0.0560335,87877.0,87876.0,0.08838398]
[1764039850280,0.04565,87877.0,87876.0,0.04743803]
[1764039851472,0.04565,87877.0,87876.0,0.00319803]
[1764039851673,0.04565,87877.0,87876.0,0.00419803]
[1764039852382,0.04565,87877.0,87876.0,0.02641803]
[1764039852679,0.31565,87877.0,87876.0,0.02641803]
[1764039852885,0.31565,87877.0,87876.0,0.00419803]
[1764039853480,0.31565,87877.0,87876.0,0.02641803]
[1764039853684,0.04565,87877.0,87876.0,0.02641803]
[1764039854784,0.47565,87877.0,87876.0,0.02641803]
[1764039855180,0.47565,87877.0,87876.0,0.00419803]
[1764039858389,0.04565,87877.0,87876.0,0.02641803]
[1764039858682,0.04565,87877.0,87876.0,0.04751803]
[1764039858887,0.033693,87881.0,87880.0,0.04332]
[1764039859188,0.3608,87883.0,87882.0,0.05724]
[1764039859189,0.54036,87883.0,87882.0,0.05724]
[1764039859486,0.3608,87891.0,87889.0,0.0547019]
[1764039859684,0.17956,87894.0,87889.0,0.41769993]
[1764039859877,0.3608,87900.0,87889.0,0.41769993]
[1764039860077,7.2e-07,87890.0,87889.0,0.41769993]
[1764039860273,0.3608,87900.0,87899.0,0.05724]
[1764039860486,0.3944893,87910.0,87909.0,0.04332]
[1764039860679,0.5956693,87910.0,87909.0,0.04551803]
[1764039860879,0.04389,87910.0,87909.0,0.04551803]
[1764039861075,0.0113787,87914.0,87910.0,0.0113791]
[1764039861373,0.0113787,87914.0,87909.0,0.00219803]
[1764039861374,0.0552687,87914.0,87913.0,0.04551803]
[1764039862382,0.0572687,87914.0,87913.0,0.04551803]
[1764039863183,0.002,87914.0,87913.0,0.04551803]
[1764039863383,0.002,87914.0,87913.0,0.40631803]
[1764039863990,0.02431,87914.0,87913.0,0.40631803]
[1764039864487,0.02331,87914.0,87913.0,0.40631803]
[1764039864682,0.0346887,87914.0,87913.0,0.40631803]
[1764039865080,0.0562687,87914.0,87913.0,0.40631803]
[1764039866285,0.04489,87914.0,87913.0,0.40631803]
[1764039866484,0.04489,87914.0,87913.0,0.42023803]
[1764039868987,0.04489,87914.0,87913.0,0.40631803]
[1764039869585,0.02331,87914.0,87913.0,0.42023803]
[1764039869785,0.001,87914.0,87913.0,0.42023803]
[1764039870191,0.04489,87914.0,87913.0,0.42023803]
[1764039870385,0.0562687,87914.0,87913.0,0.40631803]
[1764039870986,0.0562687,87914.0,87913.0,0.42023803]
[1764039871393,0.04489,87914.0,87913.0,0.42023803]
[1764039871698,0.001,87914.0,87913.0,0.42023803]
[1764039874193,0.02331,87914.0,87913.0,0.42023803]
[1764039874795,0.001,87914.0,87913.0,0.43161683]
[1764039876101,0.0562687,87914.0,87913.0,0.42023803]
[1764039876300,0.36097062,87921.0,87920.0,0.0335979]
[1764039876502,0.4160645,87946.0,87945.0,0.0211]
[1764039876702,0.4160645,87946.0,87945.0,0.00219803]
[1764039876903,0.6660645,87946.0,87945.0,0.00219803]
[1764039877306,0.6773368,87946.0,87945.0,0.00219803]
[1764039877802,0.76707355,87946.0,87945.0,0.00219803]
[1764039877999,0.76707355,87946.0,87937.0,0.00017062]
[1764039878000,0.0552656,87938.0,87937.0,0.00017062]
[1764039878202,0.8260656,87938.0,87937.0,0.00017062]
[1764039879007,0.5460656,87938.0,87937.0,0.00017062]
[1764039879506,0.8660656,87938.0,87937.0,0.00017062]
[1764039880391,0.8670656,87938.0,87937.0,0.00017062]
[1764039882597,0.02155,87914.0,87913.0,0.37472]
[1764039882796,0.04328,87914.0,87913.0,0.06187803]
[1764039885105,0.04328,87914.0,87913.0,0.04795803]
[1764039888701,0.04328,87914.0,87913.0,0.00219803]
[1764039889105,0.04328,87914.0,87913.0,0.02551803]
[1764039889511,0.04328,87914.0,87913.0,0.04795803]
[1764039890113,0.04428,87914.0,87913.0,0.04795803]
[1764039890810,0.04328,87911.0,87910.0,0.03053122]
[1764039891001,0.0546592,87910.0,87909.0,0.03053122]
[1764039891201,0.04328,87909.0,87907.0,0.03053122]
[1764039891415,0.0546595,87908.0,87907.0,0.07629122]
[1764039891715,0.4746595,87908.0,87907.0,0.07629122]
[1764039891917,0.4746595,87908.0,87907.0,0.07848925]
[1764039892512,0.4746595,87908.0,87907.0,0.04795803]
[1764039892820,0.0846595,87908.0,87907.0,0.04795803]
[1764039894119,0.05629,87906.0,87905.0,0.00017062]
[1764039894320,0.44629,87906.0,87905.0,0.04593062]
[1764039894818,0.44629,87906.0,87905.0,0.02349062]
[1764039895011,0.44629,87906.0,87905.0,0.00017062]
[1764039896020,0.13428,87906.0,87905.0,0.04599062]
[1764039897816,0.40811,87906.0,87905.0,0.00017062]
[1764039898216,0.40811,87906.0,87905.0,0.02128062]
[1764039898413,0.04428,87906.0,87905.0,0.04597865]
[1764039898619,0.20207,87906.0,87905.0,0.04597865]
[1764039899117,0.02255,87906.0,87905.0,0.04597865]
[1764039899611,0.001,87906.0,87905.0,0.41815845]
[1764039899811,0.001,87906.0,87905.0,0.45907865]
[1764039900007,0.001,87906.0,87905.0,0.41815845]
[1764039900708,0.3608,87915.0,87914.0,0.04361]
[1764039900912,0.3721786,87915.0,87914.0,0.04580803]
[1764039901625,0.3932386,87915.0,87914.0,0.04580803]
[1764039902229,0.3731786,87915.0,87914.0,0.04580803]
[1764039902431,0.3618,87915.0,87914.0,0.04580803]
[1764039904621,0.40539,87915.0,87914.0,0.04580803]
[1764039907315,0.40539,87915.0,87914.0,0.07644404]
[1764039907827,0.40539,87915.0,87914.0,0.04580803]
[1764039908126,0.40539,87915.0,87914.0,0.07644404]
[1764039908419,0.3618,87915.0,87914.0,0.07644404]
[1764039908721,0.001,87915.0,87914.0,0.07644404]
[1764039908915,0.001,87915.0,87914.0,0.04580803]
[1764039909316,0.0113776,87923.0,87921.0,0.0549878]
[1764039909616,0.0113776,87923.0,87921.0,0.41798583]
[1764039910426,0.3608,87936.0,87921.0,0.41798583]
[1764039910614,0.3608,87936.0,87935.0,0.04361]
[1764039910919,0.0113755,87939.0,87936.0,0.0113758]
[1764039911222,0.0113751,87943.0,87941.0,0.01267]
[1764039911424,0.0113746,87946.0,87945.0,0.04433]
[1764039911616,0.0113746,87946.0,87945.0,0.04652803]
[1764039912421,0.0113742,87949.0,87948.0,0.01267]
[1764039912620,0.0113742,87949.0,87948.0,0.05919803]
[1764039913121,0.04581,87953.0,87948.0,0.01486803]
[1764039913319,0.0571836,87953.0,87952.0,0.04433]
[1764039913620,0.0571836,87953.0,87952.0,0.04652803]
[1764039914724,0.05938159,87953.0,87952.0,3e-08]
[1764039914921,0.0571853,87940.0,87939.0,0.04433]
[1764039915222,0.05938329,87940.0,87939.0,0.0450627]
[1764039915717,0.05938329,87940.0,87939.0,0.0007327]
[1764039917622,0.05938329,87940.0,87939.0,0.0450627]
[1764039917826,0.04800799,87940.0,87939.0,0.0450627]
[1764039918226,0.04581,87938.0,87937.0,0.00017062]
[1764039918423,0.46800799,87938.0,87937.0,0.00017062]
[1764039918821,0.04581,87924.0,87923.0,0.43577543]
[1764039919022,0.05938539,87924.0,87923.0,0.4058627]
[1764039920723,0.04800799,87924.0,87923.0,0.4058627]
[1764039924129,0.79880799,87924.0,87923.0,0.0007327]
[1764039924720,0.0571884,87916.0,87915.0,0.04450062]
[1764039924922,0.05938639,87916.0,87915.0,0.04450062]
[1764039925123,0.05938639,87916.0,87915.0,0.04523332]
[1764039925724,0.05938639,87916.0,87915.0,0.02297332]
[1764039926635,0.04800799,87916.0,87915.0,0.04523332]
[1764039927622,0.04800799,87916.0,87915.0,0.00090332]
[1764039927830,0.04800799,87916.0,87915.0,0.00017062]
[1764039928026,0.40880799,87916.0,87915.0,0.00017062]
[1764039928232,0.78880799,87916.0,87915.0,0.00017062]
[1764039928538,0.04581,87907.0,87906.0,0.02207]
[1764039928836,0.05719,87904.0,87903.0,0.40513]
[1764039929039,0.05938799,87904.0,87903.0,0.4058627]
[1764039930442,0.00219799,87904.0,87903.0,0.4058627]
[1764039930740,0.00219799,87904.0,87903.0,0.43650813]
[1764039930941,0.04800799,87904.0,87903.0,0.0450627]
[1764039932432,0.05938799,87904.0,87903.0,0.0450627]
[1764039935043,0.01357799,87904.0,87903.0,0.0450627]
[1764039935340,0.00017062,87912.0,87911.0,0.04433]
[1764039935541,0.00017062,87912.0,87911.0,0.43644961]
[1764039935842,0.00017062,87912.0,87911.0,0.4058627]
[1764039937446,0.3608,87924.0,87923.0,0.04433]
[1764039937640,0.3608,87924.0,87923.0,0.0450627]
[1764039938140,0.0113774,87925.0,87924.0,0.04433]
[1764039938442,0.0571874,87925.0,87924.0,0.0450627]
[1764039938943,0.0346774,87925.0,87924.0,0.0450627]
[1764039939443,0.0113774,87925.0,87924.0,0.0450627]
[1764039940141,0.0233,87931.0,87927.0,0.01267]
[1764039940339,0.00017062,87933.0,87932.0,0.04433]
[1764039940646,0.00236861,87933.0,87932.0,0.0450627]
[1764039941645,0.02566861,87933.0,87932.0,0.0450627]
[1764039941837,0.00236861,87933.0,87932.0,0.0450627]
[1764039943546,0.00117062,87933.0,87932.0,0.07564327]
[1764039944137,0.00117062,87933.0,87932.0,0.0450627]
[1764039945845,0.00117062,87933.0,87932.0,0.08583679]
[1764039946237,0.00117062,87933.0,87932.0,0.0450627]
[1764039952651,6.2e-07,87933.0,87932.0,0.0450627]
[1764039955958,0.02264062,87933.0,87932.0,0.0450627]
[1764039956160,0.04411062,87933.0,87932.0,0.0450627]
[1764039956459,0.02264062,87933.0,87932.0,0.0450627]
[1764039956652,6.2e-07,87933.0,87932.0,0.0007327]
[1764039957253,0.00017062,87941.0,87940.0,0.04631]
[1764039957560,0.00017062,87941.0,87940.0,0.0470427]
[1764039957949,0.00017062,87941.0,87940.0,0.058418]
[1764039958265,0.04822861,87941.0,87940.0,0.0007327]
[1764039958560,0.19922861,87941.0,87940.0,0.0223527]
[1764039958762,0.19922861,87941.0,87940.0,0.0007327]
[1764039959761,0.19922861,87941.0,87940.0,0.0223527]
[1764039960264,0.04922861,87941.0,87940.0,0.0223527]
[1764039960954,0.04922861,87941.0,87940.0,0.0436127]
[1764039961360,0.00336861,87941.0,87940.0,0.0436127]
[1764039961563,0.00336861,87941.0,87940.0,0.054988]
[1764039961957,0.00336861,87941.0,87940.0,0.0436127]
[1764039962254,0.04953861,87941.0,87940.0,0.0436127]
[1764039967053,0.00336861,87941.0,87940.0,0.08438679]
[1764039967260,0.00336861,87941.0,87940.0,0.0436127]
[1764039967966,0.04953861,87941.0,87940.0,0.0436127]
[1764039968853,0.00336861,87941.0,87940.0,0.0436127]
[1764039969852,0.00336861,87941.0,87940.0,0.10506154]
[1764039970051,0.00117062,87941.0,87940.0,0.0436127]
[1764039970255,0.00117062,87941.0,87940.0,0.10496626]
[1764039970656,0.00117062,87941.0,87940.0,0.0436127]
[1764039970868,0.00117062,87941.0,87940.0,0.10496626]
[1764039971867,0.0113745,87947.0,87946.0,0.04526]
[1764039972066,0.0113745,87947.0,87946.0,0.0459927]
[1764039973561,0.0113737,87953.0,87951.0,0.0113738]
[1764039973757,0.0555637,87953.0,87952.0,0.0459927]
[1764039973952,0.05776169,87953.0,87952.0,0.0459927]
[1764039974361,0.05776169,87953.0,87952.0,0.0868899]
[1764039974757,0.05876169,87953.0,87952.0,0.0868899]
[1764039975069,0.05876169,87953.0,87952.0,0.0459927]
[1764039975858,0.05876169,87953.0,87952.0,0.0868899]
[1764039976068,0.05876169,87953.0,87952.0,0.0459927]
[1764039976268,0.05876169,87953.0,87952.0,0.0868899]
[1764039976568,0.05876169,87953.0,87952.0,0.0459927]
[1764039977758,0.04738799,87953.0,87952.0,0.0459927]
[1764039977967,0.001,87953.0,87952.0,0.0459927]
[1764039978563,0.001,87953.0,87952.0,0.0868899]
[1764039978764,0.001,87953.0,87952.0,0.0459927]
[1764039979072,0.001,87953.0,87952.0,0.08684728]
[1764039981170,0.001,87953.0,87952.0,0.0459927]
[1764039982066,0.02393,87953.0,87952.0,0.0459927]
[1764039984468,0.001,87953.0,87952.0,0.08684728]
[1764039984676,6.2e-07,87955.0,87954.0,0.05869]
[1764039984864,0.0555614,87970.0,87969.0,0.04526]
[1764039985064,0.47775939,87970.0,87969.0,0.0007327]
[1764039985264,0.0555625,87962.0,87959.0,0.03061871]
[1764039985566,0.04419,87955.0,87954.0,0.0007327]
[1764039985879,0.43638799,87955.0,87954.0,0.0235627]
[1764039986767,0.43738799,87955.0,87954.0,0.0235627]
[1764039987067,0.43738799,87955.0,87954.0,0.05418141]
[1764039987266,0.43738799,87955.0,87954.0,0.0235627]
[1764039987462,0.04738799,87955.0,87954.0,0.0459927]
[1764039988760,0.04738799,87955.0,87954.0,0.0594227]
[1764039988971,0.001,87955.0,87954.0,0.0707962]
[1764039990177,0.0123734,87955.0,87954.0,0.0594227]
[1764039990380,0.001,87955.0,87954.0,0.0594227]
[1764039990767,0.0353034,87955.0,87954.0,0.0594227]
[1764039991872,0.03750139,87955.0,87954.0,0.0594227]
[1764039992072,0.05876139,87955.0,87954.0,0.0594227]
[1764039993388,0.00319799,87955.0,87954.0,0.0594227]
[1764039994078,0.001,87955.0,87954.0,0.0594227]
[1764039995375,0.04738799,87955.0,87954.0,0.0594227]
[1764039995575,0.04738799,87955.0,87954.0,0.0459927]
[1764039996270,0.04738799,87955.0,87954.0,0.0594227]
[1764039996671,0.00319799,87955.0,87954.0,0.0594227]
[1764039996880,0.00319799,87955.0,87954.0,0.10027442]
[1764039997772,0.00219799,87955.0,87954.0,0.10027442]
[1764039999280,0.00219799,87955.0,87954.0,0.0594227]
[1764039999482,0.04638799,87955.0,87954.0,0.10028238]
[1764039999667,0.04638799,87955.0,87954.0,0.0459927]
[1764040000674,0.04638799,87955.0,87954.0,0.0594227]
[1764040001182,0.04638799,87955.0,87954.0,0.0459927]
[1764040001774,0.02512799,87955.0,87954.0,0.0590427]
[1764040001976,0.0325527,87961.0,87960.0,0.0565]
[1764040002279,0.00219799,87961.0,87960.0,0.0572327]
[1764040003081,0.4151711,87973.0,87972.0,0.04345]
[1764040003282,0.52736909,87973.0,87972.0,0.0441827]
[1764040004583,0.52836909,87973.0,87972.0,0.0441827]
[1764040007079,0.52836909,87973.0,87972.0,0.0007327]
[1764040007285,0.81836909,87973.0,87972.0,0.0007327]
[1764040007583,0.55836909,87973.0,87972.0,0.0441827]
[1764040008189,0.55836909,87973.0,87972.0,0.08788766]
[1764040008884,0.55836909,87973.0,87972.0,0.07483766]
[1764040009080,0.55836909,87973.0,87972.0,0.0441827]
[1764040009281,0.55836909,87973.0,87972.0,0.07483194]
[1764040011384,0.55836909,87973.0,87972.0,0.0007327]
[1764040011686,0.83836909,87973.0,87972.0,0.0007327]
[1764040012686,0.40699799,87973.0,87972.0,0.0441827]
[1764040012878,0.04619799,87973.0,87972.0,0.0572327]
[1764040013281,0.3608,87994.0,87993.0,0.04345]
[1764040013282,0.4151683,87994.0,87993.0,0.04345]
[1764040013482,0.5651683,87994.0,87993.0,0.00219803]
[1764040013685,0.7851683,87994.0,87993.0,0.00219803]
[1764040014394,0.7861683,87994.0,87993.0,0.00219803]
[1764040014585,0.4161683,87994.0,87993.0,0.00219803]
[1764040015495,0.8061683,87994.0,87993.0,0.00219803]
[1764040015786,0.0543694,87986.0,87985.0,0.00017051]
[1764040015992,0.4151694,87986.0,87985.0,0.00236854]
[1764040016894,0.05077134,88002.0,88001.0,0.04486]
[1764040017194,0.05077134,88002.0,88001.0,0.04705803]
[1764040017393,0.05077134,88002.0,88001.0,0.00219803]
[1764040017594,0.47077134,88002.0,88001.0,0.00219803]
[1764040018498,0.0551179,87997.0,87996.0,0.03057324]
[1764040018687,0.0551179,87997.0,87991.0,0.03057324]
[1764040018688,0.05772,87992.0,87991.0,0.03057324]
[1764040018989,0.44772,87992.0,87991.0,0.00219803]
[1764040019195,0.02226,87995.0,87994.0,0.04486]
[1764040019395,0.40455,87995.0,87994.0,0.04705803]
[1764040019596,0.04375,87995.0,87994.0,0.04705803]
[1764040019790,0.04375,87995.0,87994.0,0.00219803]
[1764040020287,0.04375,87995.0,87994.0,0.04705803]
[1764040020590,0.05077134,88002.0,88001.0,0.04486]
[1764040020780,0.05077134,88002.0,88001.0,0.04705803]
[1764040022981,0.05077134,88002.0,88001.0,0.05842543]
[1764040024291,0.00702134,88002.0,88001.0,0.05842543]
[1764040024482,0.05077134,88002.0,88001.0,0.04705803]
[1764040024689,0.02928134,88002.0,88001.0,0.04705803]
[1764040024996,0.05077134,88002.0,88001.0,0.04705803]
[1764040025596,0.04375,87995.0,87994.0,0.03047253]
[1764040025795,0.04375,87995.0,87994.0,0.04705803]
[1764040028501,0.04375,87995.0,87994.0,0.02502803]
[1764040029198,0.0551194,87986.0,87985.0,0.04503051]
[1764040029404,0.0551194,87986.0,87985.0,0.04722854]
[1764040029589,0.04375,87997.0,87996.0,0.04486]
[1764040029795,0.04375,87997.0,87996.0,0.04705803]
[1764040029995,0.05772,87997.0,87996.0,0.04705803]
[1764040032508,0.05772,87997.0,87996.0,0.02502803]
[1764040035212,0.05772,87997.0,87996.0,0.04791803]
[1764040035411,0.36782134,88002.0,88001.0,0.04515]
[1764040035704,0.00702134,88002.0,88001.0,0.04734803]
[1764040037204,0.00702134,88002.0,88001.0,0.07782056]
[1764040037409,0.00702134,88002.0,88001.0,0.04734803]